[Event "Live Chess"]
[Site "Chess.com"]
[Date "2023.05.20"]
[Round "-"]
[White "1600x"]
[Black "GMHarry-youtube"]
[Result "0-1"]
[WhiteElo "1746"]
[BlackElo "2114"]
[TimeControl "300"]
[EndTime "12:54:01 PDT"]
[Termination "GMHarry-youtube won on time"]

1. e4 {[%clk 0:04:34.7]} 1... c5 {[%clk 0:04:56.8]} 2. Nf3 {[%clk 0:04:23.6]}
2... d6 {[%clk 0:04:41.8]} 3. Qe2 {[%clk 0:04:23.5]} 3... Nf6 {[%clk 0:04:39.1]}
4. c3 {[%clk 0:04:21.2]} 4... g6 {[%clk 0:04:36.7]} 5. d4 {[%clk 0:04:19.5]}
5... cxd4 {[%clk 0:04:34.9]} 6. cxd4 {[%clk 0:04:18.2]} 6... Bg7 {[%clk
0:04:34.5]} 7. h3 {[%clk 0:04:16.6]} 7... O-O {[%clk 0:04:33.3]} 8. Nc3 {[%clk
0:04:14.9]} 8... e5 {[%clk 0:04:32.3]} 9. dxe5 {[%clk 0:04:13.7]} 9... dxe5
{[%clk 0:04:32.2]} 10. Nxe5 {[%clk 0:04:12.3]} 10... Re8 {[%clk 0:04:31.7]} 11.
Nf3 {[%clk 0:04:06.7]} 11... Qa5 {[%clk 0:04:29.9]} 12. e5 {[%clk 0:03:54.3]}
12... Nfd7 {[%clk 0:04:26]} 13. Qb5 {[%clk 0:03:27]} 13... Qxb5 {[%clk
0:04:22.8]} 14. Bxb5 {[%clk 0:03:24]} 14... Bxe5 {[%clk 0:04:19.8]} 15. Nxe5
{[%clk 0:03:03.7]} 15... Rxe5+ {[%clk 0:04:17.3]} 16. Be3 {[%clk 0:02:58.5]}
16... a6 {[%clk 0:04:10.3]} 17. Bd3 {[%clk 0:02:43.8]} 17... b5 {[%clk
0:03:51.1]} 18. O-O {[%clk 0:02:33.1]} 18... Bb7 {[%clk 0:03:49.5]} 19. Rfd1
{[%clk 0:02:25.2]} 19... Nc5 {[%clk 0:03:42.5]} 20. Bc2 {[%clk 0:02:22.7]} 20...
Nc6 {[%clk 0:03:40.6]} 21. Bf4 {[%clk 0:02:21.3]} 21... Re6 {[%clk 0:03:37.5]}
22. Nd5 {[%clk 0:02:19.3]} 22... Rc8 {[%clk 0:03:15.1]} 23. Nb6 {[%clk
0:02:08.2]} 23... Rce8 {[%clk 0:03:11.1]} 24. Nd5 {[%clk 0:02:03.9]} 24... Rd8
{[%clk 0:02:57.6]} 25. Bg5 {[%clk 0:01:52.5]} 25... Rdd6 {[%clk 0:02:51.7]} 26.
Nc7 {[%clk 0:01:48.2]} 26... Rxd1+ {[%clk 0:02:46.7]} 27. Bxd1 {[%clk 0:01:46]}
27... Re2 {[%clk 0:02:46.4]} 28. Bxe2 {[%clk 0:01:43.6]} 28... Nd4 {[%clk
0:02:42]} 29. Bd1 {[%clk 0:01:39.9]} 29... Nd3 {[%clk 0:02:34.3]} 30. b3 {[%clk
0:01:30]} 30... Be4 {[%clk 0:02:28.5]} 31. Nxa6 {[%clk 0:01:27.8]} 31... Kg7
{[%clk 0:02:19.8]} 32. Bd2 {[%clk 0:01:24.8]} 32... f6 {[%clk 0:02:13.4]} 33.
Nc7 {[%clk 0:01:22.6]} 33... b4 {[%clk 0:02:09.5]} 34. Ne8+ {[%clk 0:01:21.1]}
34... Kf8 {[%clk 0:02:07.4]} 35. Nxf6 {[%clk 0:01:18]} 35... Bc6 {[%clk
0:02:03.4]} 36. Ne4 {[%clk 0:01:16]} 36... Bxe4 {[%clk 0:02:01.8]} 37. f3 {[%clk
0:01:14.7]} 37... Bf5 {[%clk 0:01:55.5]} 38. a3 {[%clk 0:01:09.7]} 38... bxa3
{[%clk 0:01:46.5]} 39. Rxa3 {[%clk 0:01:07.1]} 39... h5 {[%clk 0:01:45.2]} 40.
Bh6+ {[%clk 0:00:45.9]} 40... Kf7 {[%clk 0:01:41.4]} 41. Ra7+ {[%clk 0:00:43.2]}
41... Ke6 {[%clk 0:01:40.7]} 42. Ra6+ {[%clk 0:00:40.8]} 42... Kd7 {[%clk
0:01:37.2]} 43. Ra7+ {[%clk 0:00:32.2]} 43... Kc6 {[%clk 0:01:34.9]} 44. f4
{[%clk 0:00:27.9]} 44... Bd7 {[%clk 0:01:29.4]} 45. Bf3+ {[%clk 0:00:20.3]}
45... Kd6 {[%clk 0:01:25.9]} 46. Ra6+ {[%clk 0:00:18.6]} 46... Nc6 {[%clk
0:01:14.2]} 47. Be4 {[%clk 0:00:16.5]} 47... Nc5 {[%clk 0:01:11.9]} 48. Bf8+
{[%clk 0:00:14.7]} 48... Kc7 {[%clk 0:01:07.9]} 49. Bd6+ {[%clk 0:00:13]} 49...
Kb7 {[%clk 0:01:07.8]} 50. Bxc5 {[%clk 0:00:11.9]} 50... Kxa6 {[%clk 0:01:06.7]}
51. Bxg6 {[%clk 0:00:10.5]} 51... h4 {[%clk 0:01:04]} 52. b4 {[%clk 0:00:08.6]}
52... Kb5 {[%clk 0:01:03]} 53. Bd3+ {[%clk 0:00:06.7]} 53... Ka4 {[%clk
0:01:02.3]} 54. b5 {[%clk 0:00:05.5]} 54... Na5 {[%clk 0:01:01.1]} 55. b6 {[%clk
0:00:04.6]} 55... Nb7 {[%clk 0:00:57.2]} 56. Bd4 {[%clk 0:00:02.9]} 56... Kb4
{[%clk 0:00:54.3]} 57. Bc3+ {[%clk 0:00:02.4]} 57... Kxc3 {[%clk 0:00:53.4]} 58.
Be4 {[%clk 0:00:01.5]} 58... Nc5 {[%clk 0:00:52]} 59. Bf3 {[%clk 0:00:01.4]}
59... Kd4 {[%clk 0:00:49.6]} 60. Bh5 {[%clk 0:00:01.3]} 60... Ke4 {[%clk
0:00:47.4]} 61. f5 {[%clk 0:00:01.2]} 61... Bxf5 {[%clk 0:00:45.5]} 0-1

[Event "Live Chess"]
[Site "Chess.com"]
[Date "2023.05.20"]
[Round "-"]
[White "Jo1ts"]
[Black "sindkuu"]
[Result "0-1"]
[WhiteElo "730"]
[BlackElo "626"]
[TimeControl "300"]
[EndTime "12:54:01 PDT"]
[Termination "sindkuu won by checkmate"]

1. d4 {[%clk 0:04:59.2]} 1... e6 {[%clk 0:04:48.7]} 2. Bf4 {[%clk 0:04:58.6]}
2... g5 {[%clk 0:04:42.5]} 3. Bg3 {[%clk 0:04:53.6]} 3... h5 {[%clk 0:04:35.8]}
4. h3 {[%clk 0:04:50.4]} 4... h4 {[%clk 0:04:26.3]} 5. Bh2 {[%clk 0:04:48.6]}
5... b6 {[%clk 0:04:21.5]} 6. Nf3 {[%clk 0:04:46.1]} 6... Bb7 {[%clk 0:04:11.9]}
7. e3 {[%clk 0:04:44.1]} 7... Be4 {[%clk 0:04:06.4]} 8. Bd3 {[%clk 0:04:39.8]}
8... Nf6 {[%clk 0:04:01.5]} 9. Bxe4 {[%clk 0:04:35.4]} 9... Nxe4 {[%clk
0:03:54.6]} 10. Nbd2 {[%clk 0:04:34.4]} 10... Nxd2 {[%clk 0:03:53.1]} 11. Qxd2
{[%clk 0:04:34.3]} 11... d6 {[%clk 0:03:52]} 12. c3 {[%clk 0:04:31.8]} 12... Bh6
{[%clk 0:03:50.6]} 13. Qc2 {[%clk 0:04:16.6]} 13... O-O {[%clk 0:03:44.2]} 14.
g3 {[%clk 0:04:10.3]} 14... Qf6 {[%clk 0:03:39.7]} 15. Qe4 {[%clk 0:03:49.3]}
15... d5 {[%clk 0:03:33.4]} 16. Qg4 {[%clk 0:03:47.7]} 16... hxg3 {[%clk
0:03:26.7]} 17. fxg3 {[%clk 0:03:43.3]} 17... Qg6 {[%clk 0:03:17.5]} 18. h4
{[%clk 0:03:39.7]} 18... f5 {[%clk 0:03:12.5]} 19. Qh3 {[%clk 0:03:31.5]} 19...
g4 {[%clk 0:03:02.5]} 20. Qg2 {[%clk 0:03:29.1]} 20... Bxe3 {[%clk 0:02:58.2]}
21. Ng5 {[%clk 0:03:16.3]} 21... Nc6 {[%clk 0:02:54.3]} 22. Qe2 {[%clk
0:03:02.7]} 22... f4 {[%clk 0:02:48.3]} 23. gxf4 {[%clk 0:02:57.6]} 23... Bxf4
{[%clk 0:02:43.1]} 24. Qxe6+ {[%clk 0:02:43.5]} 24... Kg7 {[%clk 0:02:36.3]} 25.
Qxg6+ {[%clk 0:02:36.9]} 25... Kxg6 {[%clk 0:02:28.7]} 26. Ne6 {[%clk
0:02:35.9]} 26... Rae8 {[%clk 0:02:22.6]} 27. Bxf4 {[%clk 0:02:28.5]} 27... Rxf4
{[%clk 0:02:14.1]} 28. O-O-O {[%clk 0:02:21.1]} 28... Rxe6 {[%clk 0:02:08.2]}
29. h5+ {[%clk 0:02:19]} 29... Kg5 {[%clk 0:02:04.7]} 30. Rdf1 {[%clk
0:02:06.2]} 30... Rxf1+ {[%clk 0:01:55.1]} 31. Rxf1 {[%clk 0:02:06.1]} 31... g3
{[%clk 0:01:49.3]} 32. Rg1 {[%clk 0:02:02]} 32... Re3 {[%clk 0:01:41.4]} 33. Kd2
{[%clk 0:01:56.6]} 33... Rf3 {[%clk 0:01:38.3]} 34. Ke2 {[%clk 0:01:53.1]} 34...
Kg4 {[%clk 0:01:31.9]} 35. h6 {[%clk 0:01:48.6]} 35... Rf2+ {[%clk 0:01:26.6]}
36. Ke1 {[%clk 0:01:45.9]} 36... Rh2 {[%clk 0:01:15.9]} 37. b3 {[%clk
0:01:26.6]} 37... Rxh6 {[%clk 0:01:12.7]} 38. c4 {[%clk 0:01:26]} 38... dxc4
{[%clk 0:01:05.6]} 39. bxc4 {[%clk 0:01:25.9]} 39... Re6+ {[%clk 0:00:56.1]} 40.
Kd2 {[%clk 0:01:20]} 40... Nxd4 {[%clk 0:00:52.5]} 41. Kc3 {[%clk 0:01:16.4]}
41... Ne2+ {[%clk 0:00:43]} 42. Kd2 {[%clk 0:01:12.9]} 42... Nxg1 {[%clk
0:00:39.7]} 43. Kd3 {[%clk 0:01:10.4]} 43... Nf3 {[%clk 0:00:32.7]} 44. Kc3
{[%clk 0:01:07.6]} 44... g2 {[%clk 0:00:26.5]} 45. Kb4 {[%clk 0:01:06.9]} 45...
g1=Q {[%clk 0:00:17.4]} 46. Kb5 {[%clk 0:01:04.5]} 46... Qc5+ {[%clk 0:00:14.3]}
47. Ka6 {[%clk 0:01:01.7]} 47... Qxc4+ {[%clk 0:00:13.8]} 48. Kb7 {[%clk
0:00:55.3]} 48... Qxa2 {[%clk 0:00:13.1]} 49. Kb8 {[%clk 0:00:52]} 49... c6
{[%clk 0:00:12.4]} 50. Kb7 {[%clk 0:00:50.9]} 50... Kf4 {[%clk 0:00:11.9]} 51.
Kc7 {[%clk 0:00:49.3]} 51... Ke5 {[%clk 0:00:11.5]} 52. Kd7 {[%clk 0:00:47.4]}
52... Rd6+ {[%clk 0:00:10.9]} 53. Kc7 {[%clk 0:00:44.5]} 53... Qa6 {[%clk
0:00:10.4]} 54. Kb8 {[%clk 0:00:42.9]} 54... Rd8+ {[%clk 0:00:10]} 55. Kc7
{[%clk 0:00:41.7]} 55... Qc8# {[%clk 0:00:09.5]} 0-1

[Event "Live Chess"]
[Site "Chess.com"]
[Date "2023.05.20"]
[Round "-"]
[White "diana21strabt"]
[Black "Conradical12"]
[Result "1-0"]
[WhiteElo "1667"]
[BlackElo "1567"]
[TimeControl "300"]
[EndTime "12:54:09 PDT"]
[Termination "diana21strabt won by resignation"]

1. e4 {[%clk 0:04:58.6]} 1... e5 {[%clk 0:04:58.5]} 2. Nf3 {[%clk 0:04:57.6]}
2... Nc6 {[%clk 0:04:58]} 3. d4 {[%clk 0:04:56.7]} 3... exd4 {[%clk 0:04:56.2]}
4. Bc4 {[%clk 0:04:56]} 4... Nf6 {[%clk 0:04:55.5]} 5. O-O {[%clk 0:04:54]} 5...
Bc5 {[%clk 0:04:42.4]} 6. e5 {[%clk 0:04:47.2]} 6... Ng4 {[%clk 0:04:40.8]} 7.
Bf4 {[%clk 0:04:44.7]} 7... O-O {[%clk 0:04:38.6]} 8. h3 {[%clk 0:04:40.9]} 8...
Na5 {[%clk 0:04:33.6]} 9. Bd3 {[%clk 0:04:32]} 9... f5 {[%clk 0:04:31.6]} 10.
hxg4 {[%clk 0:04:28]} 10... fxg4 {[%clk 0:04:29.9]} 11. Bxh7+ {[%clk 0:04:22.8]}
11... Kxh7 {[%clk 0:04:24.1]} 12. Ng5+ {[%clk 0:04:20.6]} 12... Kg8 {[%clk
0:04:22.6]} 13. Qxg4 {[%clk 0:04:19.6]} 13... d5 {[%clk 0:04:16.5]} 14. e6
{[%clk 0:04:13.7]} 14... Qf6 {[%clk 0:04:10.4]} 15. g3 {[%clk 0:04:04.8]} 15...
Nc6 {[%clk 0:03:34]} 16. Nd2 {[%clk 0:03:59]} 16... Ne5 {[%clk 0:03:30.9]} 17.
Bxe5 {[%clk 0:03:51.4]} 17... Qxe5 {[%clk 0:03:29]} 18. Rae1 {[%clk 0:03:50.7]}
18... Qf6 {[%clk 0:03:25.7]} 19. Nb3 {[%clk 0:03:48.3]} 19... Bb6 {[%clk
0:03:23.6]} 20. a4 {[%clk 0:03:29.5]} 20... d3 {[%clk 0:03:22.5]} 21. Nh3 {[%clk
0:03:03.6]} 21... dxc2 {[%clk 0:03:08.8]} 22. a5 {[%clk 0:02:57.4]} 22... Qxb2
{[%clk 0:02:56.2]} 23. Qb4 {[%clk 0:02:45.4]} 23... c5 {[%clk 0:02:38.9]} 24.
Qb5 {[%clk 0:02:34.8]} 24... a6 {[%clk 0:02:35.5]} 25. Qxb6 {[%clk 0:02:33]}
25... Bxe6 {[%clk 0:02:09.4]} 26. Qxe6+ {[%clk 0:02:28.8]} 26... Kh8 {[%clk
0:02:07.9]} 27. Nxc5 {[%clk 0:02:22.6]} 27... Rae8 {[%clk 0:02:03.3]} 28. Qd6
{[%clk 0:02:06.1]} 28... Rg8 {[%clk 0:01:47.2]} 29. Nd3 {[%clk 0:01:58.5]} 29...
Qd4 {[%clk 0:01:37.3]} 30. Nhf4 {[%clk 0:01:44.1]} 30... Rxe1 {[%clk 0:01:31.4]}
31. Rxe1 {[%clk 0:01:42.6]} 31... Qc3 {[%clk 0:00:58.3]} 32. Qc5 {[%clk
0:01:15.6]} 32... Qxc5 {[%clk 0:00:20.8]} 33. Nxc5 {[%clk 0:01:12.4]} 33... g5
{[%clk 0:00:19.7]} 34. Nxd5 {[%clk 0:01:10.7]} 34... Rc8 {[%clk 0:00:18.1]} 35.
Nb3 {[%clk 0:01:09.1]} 35... Rc4 {[%clk 0:00:16.3]} 36. Rc1 {[%clk 0:01:04.3]}
36... Kg7 {[%clk 0:00:13.9]} 37. Ne3 {[%clk 0:01:02.6]} 37... Rc3 {[%clk
0:00:12]} 38. Nd4 {[%clk 0:00:58]} 38... Kf6 {[%clk 0:00:08.6]} 39. Rxc2 {[%clk
0:00:56.7]} 39... Ke5 {[%clk 0:00:08.5]} 40. Rxc3 {[%clk 0:00:55.3]} 40... Kxd4
{[%clk 0:00:08.4]} 41. Rc4+ {[%clk 0:00:54.3]} 41... Kd3 {[%clk 0:00:07.6]} 42.
Rg4 {[%clk 0:00:52.7]} 42... Kc3 {[%clk 0:00:06.4]} 43. Rxg5 {[%clk 0:00:51.9]}
1-0

[Event "Live Chess"]
[Site "Chess.com"]
[Date "2023.05.20"]
[Round "-"]
[White "Doge_Dandolo"]
[Black "rideuv21"]
[Result "1-0"]
[WhiteElo "2044"]
[BlackElo "1822"]
[TimeControl "300"]
[EndTime "12:54:12 PDT"]
[Termination "Doge_Dandolo won by resignation"]

1. Nf3 {[%clk 0:04:58.3]} 1... c5 {[%clk 0:04:59.9]} 2. c4 {[%clk 0:04:56.9]}
2... Nc6 {[%clk 0:04:58.7]} 3. d4 {[%clk 0:04:55.6]} 3... cxd4 {[%clk
0:04:58.6]} 4. Nxd4 {[%clk 0:04:54.8]} 4... g6 {[%clk 0:04:58.4]} 5. g3 {[%clk
0:04:52.7]} 5... Bg7 {[%clk 0:04:57.1]} 6. Nc2 {[%clk 0:04:52.2]} 6... Nf6
{[%clk 0:04:56]} 7. Nc3 {[%clk 0:04:50.9]} 7... O-O {[%clk 0:04:55.4]} 8. Bg2
{[%clk 0:04:50.5]} 8... d6 {[%clk 0:04:53.1]} 9. O-O {[%clk 0:04:49.2]} 9... Be6
{[%clk 0:04:52.3]} 10. Ne3 {[%clk 0:04:45.9]} 10... Rc8 {[%clk 0:04:49.7]} 11.
Bd2 {[%clk 0:04:44.8]} 11... Ne5 {[%clk 0:04:48.1]} 12. Bxb7 {[%clk 0:04:39.1]}
12... Rc7 {[%clk 0:04:45.6]} 13. Bg2 {[%clk 0:04:37.5]} 13... Nxc4 {[%clk
0:04:44.2]} 14. Nxc4 {[%clk 0:04:36.1]} 14... Bxc4 {[%clk 0:04:44.1]} 15. Rc1
{[%clk 0:04:32.6]} 15... d5 {[%clk 0:04:43]} 16. b3 {[%clk 0:04:31]} 16... Ba6
{[%clk 0:04:40.9]} 17. Re1 {[%clk 0:04:26.3]} 17... e5 {[%clk 0:04:34.2]} 18.
Bg5 {[%clk 0:04:22.7]} 18... d4 {[%clk 0:04:32.5]} 19. Ne4 {[%clk 0:04:18.8]}
19... Rxc1 {[%clk 0:04:32.4]} 20. Qxc1 {[%clk 0:04:16.5]} 20... h6 {[%clk
0:04:31.6]} 21. Bxf6 {[%clk 0:04:12.5]} 21... Bxf6 {[%clk 0:04:30.7]} 22. Qc6
{[%clk 0:04:10.3]} 1-0

[Event "Live Chess"]
[Site "Chess.com"]
[Date "2023.05.20"]
[Round "-"]
[White "tuppyglossop"]
[Black "f4nomore"]
[Result "1-0"]
[WhiteElo "1594"]
[BlackElo "1357"]
[TimeControl "300"]
[EndTime "12:54:15 PDT"]
[Termination "tuppyglossop won on time"]

1. e4 {[%clk 0:04:56.3]} 1... g6 {[%clk 0:04:59.9]} 2. d4 {[%clk 0:04:54.9]}
2... Bg7 {[%clk 0:04:59.8]} 3. Nc3 {[%clk 0:04:52.5]} 3... d6 {[%clk 0:04:59.7]}
4. f4 {[%clk 0:04:51.5]} 4... Nf6 {[%clk 0:04:58.7]} 5. Nf3 {[%clk 0:04:50.2]}
5... O-O {[%clk 0:04:57.5]} 6. Be2 {[%clk 0:04:48.8]} 6... Nbd7 {[%clk
0:04:54.7]} 7. O-O {[%clk 0:04:47.4]} 7... c5 {[%clk 0:04:53.1]} 8. e5 {[%clk
0:04:45.8]} 8... dxe5 {[%clk 0:04:51.2]} 9. dxe5 {[%clk 0:04:44.4]} 9... Ng4
{[%clk 0:04:46.6]} 10. Ng5 {[%clk 0:04:36]} 10... Nh6 {[%clk 0:04:43.2]} 11. e6
{[%clk 0:04:30.2]} 11... Nb6 {[%clk 0:04:31.7]} 12. exf7+ {[%clk 0:04:15.3]}
12... Nxf7 {[%clk 0:04:29.4]} 13. Nxf7 {[%clk 0:04:06.2]} 13... Qxd1 {[%clk
0:04:25]} 14. Rxd1 {[%clk 0:04:04.9]} 14... Rxf7 {[%clk 0:04:20]} 15. Nd5 {[%clk
0:03:58.8]} 15... Nxd5 {[%clk 0:04:16.4]} 16. Rxd5 {[%clk 0:03:58.7]} 16... Be6
{[%clk 0:04:14.2]} 17. Rxc5 {[%clk 0:03:53.7]} 17... Rd8 {[%clk 0:04:02.3]} 18.
c3 {[%clk 0:03:42.5]} 18... b6 {[%clk 0:04:00.6]} 19. Rc7 {[%clk 0:03:39.6]}
19... a5 {[%clk 0:03:33.5]} 20. Be3 {[%clk 0:03:30.7]} 20... Rb8 {[%clk
0:03:29.4]} 21. a3 {[%clk 0:03:18.8]} 21... b5 {[%clk 0:03:24.1]} 22. Rd1 {[%clk
0:03:16]} 22... b4 {[%clk 0:03:18.8]} 23. axb4 {[%clk 0:03:05.2]} 23... axb4
{[%clk 0:03:17]} 24. cxb4 {[%clk 0:03:04.2]} 24... Rxb4 {[%clk 0:03:04.8]} 25.
Rd8+ {[%clk 0:02:58.6]} 25... Rf8 {[%clk 0:02:52.9]} 26. Rxf8+ {[%clk 0:02:36]}
26... Kxf8 {[%clk 0:02:49.6]} 27. Rc6 {[%clk 0:02:23.3]} 27... Bd5 {[%clk
0:02:38.5]} 28. Rc2 {[%clk 0:02:06]} 28... Be4 {[%clk 0:02:30]} 29. Rd2 {[%clk
0:02:01]} 29... Bxb2 {[%clk 0:02:22.6]} 30. Bc5 {[%clk 0:01:57.8]} 30... Rb8
{[%clk 0:02:02.5]} 31. Kf2 {[%clk 0:01:45.7]} 31... Bf6 {[%clk 0:01:53.4]} 32.
g3 {[%clk 0:01:35.9]} 32... Rc8 {[%clk 0:01:43.7]} 33. Bd4 {[%clk 0:01:25.8]}
33... Bxd4+ {[%clk 0:01:40.8]} 34. Rxd4 {[%clk 0:01:25.7]} 34... Rc2 {[%clk
0:01:36.7]} 35. Rxe4 {[%clk 0:01:23]} 35... Kf7 {[%clk 0:01:31.1]} 36. Kf3
{[%clk 0:01:20.9]} 36... Kf6 {[%clk 0:01:28.1]} 37. h4 {[%clk 0:01:16.3]} 37...
h6 {[%clk 0:01:24]} 38. g4 {[%clk 0:01:14.7]} 38... Rc3+ {[%clk 0:01:20.8]} 39.
Re3 {[%clk 0:01:11.9]} 39... Rc2 {[%clk 0:01:19.5]} 40. Bd3 {[%clk 0:01:07.1]}
40... Rd2 {[%clk 0:01:16.2]} 41. g5+ {[%clk 0:01:03.9]} 41... hxg5 {[%clk
0:01:13.4]} 42. hxg5+ {[%clk 0:01:02.7]} 42... Kf7 {[%clk 0:01:07.4]} 43. Bc4+
{[%clk 0:01:01]} 43... Ke8 {[%clk 0:01:05]} 44. Re6 {[%clk 0:00:56.4]} 44... Rc2
{[%clk 0:00:59.5]} 45. Bb5+ {[%clk 0:00:50.6]} 45... Kf7 {[%clk 0:00:55.9]} 46.
Re3 {[%clk 0:00:44.4]} 46... e6 {[%clk 0:00:50.6]} 47. Bd3 {[%clk 0:00:39.9]}
47... Rc7 {[%clk 0:00:44.6]} 48. Ke4 {[%clk 0:00:37.4]} 48... Rd7 {[%clk
0:00:38.3]} 49. Rh3 {[%clk 0:00:36.1]} 49... Kg7 {[%clk 0:00:32.5]} 50. Ke5
{[%clk 0:00:32.5]} 50... Re7 {[%clk 0:00:22.8]} 51. Rh6 {[%clk 0:00:30.3]} 51...
Ra7 {[%clk 0:00:18.3]} 52. Rxg6+ {[%clk 0:00:28.6]} 52... Kf8 {[%clk 0:00:16.3]}
53. Rxe6 {[%clk 0:00:26.6]} 53... Ra5+ {[%clk 0:00:13.6]} 54. Kf6 {[%clk
0:00:25.5]} 54... Ra7 {[%clk 0:00:05.1]} 55. Bg6 {[%clk 0:00:21.9]} 1-0

[Event "Live Chess"]
[Site "Chess.com"]
[Date "2023.05.20"]
[Round "-"]
[White "SavagePawn7"]
[Black "KuriyamaMiraiUA"]
[Result "1-0"]
[WhiteElo "794"]
[BlackElo "678"]
[TimeControl "300"]
[EndTime "12:54:18 PDT"]
[Termination "SavagePawn7 won by checkmate"]

1. e4 {[%clk 0:04:57.1]} 1... c6 {[%clk 0:04:59]} 2. d4 {[%clk 0:04:54]} 2... d5
{[%clk 0:04:58.6]} 3. Nc3 {[%clk 0:04:52.9]} 3... Nf6 {[%clk 0:04:53.5]} 4. e5
{[%clk 0:04:42]} 4... Nfd7 {[%clk 0:04:45]} 5. Nf3 {[%clk 0:04:39]} 5... f6
{[%clk 0:04:42.5]} 6. exf6 {[%clk 0:04:30.5]} 6... exf6 {[%clk 0:04:37.8]} 7.
Qe2+ {[%clk 0:04:23.9]} 7... Be7 {[%clk 0:04:35]} 8. Bf4 {[%clk 0:04:01]} 8...
O-O {[%clk 0:04:30.7]} 9. O-O-O {[%clk 0:03:58.2]} 9... c5 {[%clk 0:04:19.4]}
10. dxc5 {[%clk 0:03:56.3]} 10... Nxc5 {[%clk 0:04:11.7]} 11. Rxd5 {[%clk
0:03:50.5]} 11... Nbd7 {[%clk 0:04:01.5]} 12. Qc4 {[%clk 0:03:35.4]} 12... b6
{[%clk 0:03:40.6]} 13. Rxd7+ {[%clk 0:03:29.9]} 13... Ne6 {[%clk 0:03:31.2]} 14.
Rxd8 {[%clk 0:03:27.9]} 14... Rxd8 {[%clk 0:03:30.2]} 15. Bd3 {[%clk 0:03:20.4]}
15... a5 {[%clk 0:02:57.4]} 16. Re1 {[%clk 0:03:12]} 16... Rd6 {[%clk
0:02:47.2]} 17. Bxd6 {[%clk 0:03:07.5]} 17... Bxd6 {[%clk 0:02:46.6]} 18. Rxe6
{[%clk 0:03:02.7]} 18... Bxe6 {[%clk 0:02:44.7]} 19. Qxe6+ {[%clk 0:03:01.1]}
19... Kh8 {[%clk 0:02:39.1]} 20. Qxd6 {[%clk 0:02:59.4]} 20... Rd8 {[%clk
0:02:34.9]} 21. Qc7 {[%clk 0:02:54.7]} 21... Rc8 {[%clk 0:02:32]} 22. Qxc8#
{[%clk 0:02:52.7]} 1-0

[Event "Live Chess"]
[Site "Chess.com"]
[Date "2023.05.20"]
[Round "-"]
[White "Hacker_2009"]
[Black "Leonid_Starozhilov"]
[Result "0-1"]
[WhiteElo "1893"]
[BlackElo "2653"]
[TimeControl "300"]
[EndTime "12:54:21 PDT"]
[Termination "Leonid_Starozhilov won by resignation"]

1. d4 {[%clk 0:04:58.3]} 1... Nf6 {[%clk 0:04:59.2]} 2. Nf3 {[%clk 0:04:56.9]}
2... g6 {[%clk 0:04:58.7]} 3. c4 {[%clk 0:04:55.4]} 3... Bg7 {[%clk 0:04:58.2]}
4. Nc3 {[%clk 0:04:54.3]} 4... O-O {[%clk 0:04:58.1]} 5. e4 {[%clk 0:04:53.4]}
5... d6 {[%clk 0:04:58]} 6. Be2 {[%clk 0:04:51.4]} 6... Bg4 {[%clk 0:04:56.1]}
7. O-O {[%clk 0:04:50.5]} 7... Nfd7 {[%clk 0:04:53.2]} 8. h3 {[%clk 0:04:44.8]}
8... Bxf3 {[%clk 0:04:51.9]} 9. Bxf3 {[%clk 0:04:43.9]} 9... Nc6 {[%clk
0:04:51.7]} 10. d5 {[%clk 0:04:42.5]} 10... Nd4 {[%clk 0:04:50.3]} 11. Be2
{[%clk 0:04:30.3]} 11... c5 {[%clk 0:04:38.8]} 12. Be3 {[%clk 0:04:25.9]} 12...
a6 {[%clk 0:04:36]} 13. f4 {[%clk 0:04:19.1]} 13... Rb8 {[%clk 0:04:31.3]} 14.
a4 {[%clk 0:04:15.8]} 14... e6 {[%clk 0:04:26.2]} 15. Rc1 {[%clk 0:04:00.8]}
15... exd5 {[%clk 0:04:23]} 16. cxd5 {[%clk 0:03:56.5]} 16... b5 {[%clk
0:04:21.8]} 17. axb5 {[%clk 0:03:51.5]} 17... axb5 {[%clk 0:04:21.7]} 18. Kh1
{[%clk 0:03:49.9]} 18... b4 {[%clk 0:04:20.5]} 19. Bxd4 {[%clk 0:03:44.9]} 19...
Bxd4 {[%clk 0:04:17.4]} 20. Nb5 {[%clk 0:03:43.2]} 20... Bxb2 {[%clk 0:04:09.8]}
21. Rb1 {[%clk 0:03:36.3]} 21... Bg7 {[%clk 0:04:04.6]} 22. Nxd6 {[%clk
0:03:35]} 22... Rb6 {[%clk 0:03:50.2]} 23. Nc4 {[%clk 0:03:32.2]} 23... Ra6
{[%clk 0:03:49.4]} 24. Ne5 {[%clk 0:03:28.8]} 24... Ra3 {[%clk 0:03:40.4]} 25.
Nc6 {[%clk 0:03:26.8]} 25... Qh4 {[%clk 0:03:36.9]} 26. Bg4 {[%clk 0:03:19.8]}
26... Nf6 {[%clk 0:03:31.7]} 27. Bf3 {[%clk 0:03:17.2]} 27... Qxf4 {[%clk
0:03:24.8]} 28. e5 {[%clk 0:02:56.7]} 28... Ne4 {[%clk 0:03:17.7]} 29. Bxe4
{[%clk 0:02:47.9]} 29... Qxe4 {[%clk 0:03:17.6]} 30. Re1 {[%clk 0:02:15.8]}
30... Rxh3+ {[%clk 0:03:07.7]} 31. Kg1 {[%clk 0:02:10.6]} 31... Re3 {[%clk
0:03:07.4]} 32. Qd2 {[%clk 0:01:58.4]} 32... Bh6 {[%clk 0:02:56.7]} 33. Qf2
{[%clk 0:01:40.4]} 33... Re8 {[%clk 0:02:24.6]} 34. Rbd1 {[%clk 0:01:07.3]}
34... Rxe1+ {[%clk 0:02:05.7]} 35. Rxe1 {[%clk 0:01:05.3]} 35... Qxd5 {[%clk
0:02:03.7]} 36. Qf6 {[%clk 0:01:02.2]} 36... Qe6 {[%clk 0:01:54.2]} 37. Qh4
{[%clk 0:00:48.9]} 37... Bd2 {[%clk 0:01:40.7]} 38. Re2 {[%clk 0:00:45.5]} 38...
Bc3 {[%clk 0:01:38.3]} 39. Na5 {[%clk 0:00:41.1]} 39... Bxe5 {[%clk 0:01:36.6]}
0-1